bitfinex/quotes_ETHUSD_20250322
["timestamp","ask_amount","ask_price","bid_price","bid_amount"]
[1742629056584,10.0464,1990.8,1990.7,0.3577343]
[1742629057007,10.0464,1990.8,1990.6,31.17]
[1742629057186,10.0464,1990.8,1990.7,0.3577343]
[1742629057505,10.0464,1990.8,1990.6,31.17]
[1742629057708,10.0464,1990.8,1990.7,0.35784319]
[1742629058204,10.0464,1990.8,1990.6,31.17]
[1742629058500,10.0464,1990.8,1990.7,0.35784319]
[1742629058909,10.0464,1990.8,1990.6,31.17]
[1742629059078,5.0231,1990.8,1990.7,0.35784319]
[1742629059279,5.02335,1990.7,1990.6,31.17]
[1742629059610,5.02335,1990.7,1990.6,31.52808347]
[1742629060111,7.3332136,1990.7,1990.6,31.52808347]
[1742629060329,9.44103496,1990.7,1990.6,0.35808347]
[1742629060679,9.44103496,1990.7,1990.2,4.618]
[1742629060680,5.02418,1990.4,1990.2,4.618]
[1742629060881,5.02418,1990.4,1990.3,0.35919648]
[1742629066023,7.3340436,1990.4,1990.3,0.35919648]
[1742629066228,5.02418,1990.4,1990.3,0.35919648]
[1742629103982,5.02316,1990.8,1990.4,0.1415]
[1742629104146,5.02316,1990.8,1990.5,2.3098636]
[1742629104479,5.02316,1990.8,1990.6,4.615]
[1742629104875,5.02316,1990.8,1990.7,0.35991239]
[1742629105181,5.02316,1990.8,1990.6,4.615]
[1742629105560,5.02316,1990.8,1990.7,0.35991239]
[1742629105762,8.56861996,1990.8,1990.7,0.35991239]
[1742629105960,8.56861996,1990.8,1990.6,4.615]
[1742629105961,5.02335,1990.7,1990.6,4.615]
[1742629106547,5.02382,1990.6,1990.4,4.617]
[1742629106951,5.02387,1990.5,1990.3,5.98999228]
[1742629107152,5.02411,1990.4,1990.3,10.60699228]
[1742629107473,5.02411,1990.4,1990.3,4.617]
[1742629108183,5.02411,1990.4,1990.3,4.97765583]
[1742629113317,5.02313,1990.8,1990.4,0.1415]
[1742629113615,5.02349,1990.7,1990.5,2.66999515]
[1742629113910,5.02315,1990.8,1990.5,2.66999515]
[1742629114286,5.02315,1990.8,1990.5,0.36013155]
[1742629114678,5.02315,1990.8,1990.5,2.66999515]
[1742629115004,10.04643,1990.8,1990.5,0.36013155]
[1742629116989,5.02312,1990.8,1990.5,5.38397155]
[1742629117284,5.02286,1990.9,1990.5,8.97961766]
[1742629117909,5.02286,1990.9,1990.6,0.1415]
[1742629118182,5.02286,1990.9,1990.7,0.35965096]
[1742629118594,5.02286,1990.9,1990.6,2.4513636]
[1742629118793,5.02286,1990.9,1990.6,0.1415]
[1742629118998,5.02286,1990.9,1990.7,0.35965096]
[1742629119516,5.02286,1990.9,1990.6,6.54353361]
[1742629119818,5.02286,1990.9,1990.6,8.85339721]
[1742629120022,5.02286,1990.9,1990.7,0.35965096]
[1742629120429,5.02286,1990.9,1990.6,8.85339721]
[1742629121026,5.02286,1990.9,1990.7,0.35965096]
[1742629121397,5.02286,1990.9,1990.6,7.4749336]
[1742629121590,5.82901,1991.0,1990.7,6.9308636]
[1742629121788,5.82901,1991.0,1990.7,4.98065096]
[1742629121988,5.02261,1991.0,1990.7,4.98065096]
[1742629122228,10.86698,1991.1,1990.7,12.31380456]
[1742629122631,5.02235,1991.1,1990.7,12.31380456]
[1742629122833,10.04488,1991.1,1990.7,12.31380456]
[1742629122993,10.04488,1991.1,1990.7,14.18666485]
[1742629123536,5.0226,1991.0,1990.7,14.18666485]
[1742629124421,5.0226,1991.0,1990.7,11.87680125]
[1742629124737,5.0226,1991.0,1990.7,14.18666485]
[1742629126700,5.02243,1991.1,1990.7,14.18666485]
[1742629127042,5.02243,1991.1,1990.8,1.41866649]
[1742629127245,5.02243,1991.1,1990.8,1.77740193]
[1742629127842,10.04496,1991.1,1990.8,1.77740193]
[1742629129913,5.02243,1991.1,1990.8,1.91890193]
[1742629133964,5.02285,1990.9,1990.8,0.35873544]
[1742629134260,7.3327136,1990.9,1990.8,0.35873544]
[1742629134447,5.02285,1990.9,1990.8,0.35873544]
[1742629135564,8.1576136,1990.9,1990.8,0.35873544]
[1742629135841,5.02361,1990.6,1990.5,10.60999228]
[1742629136016,5.02361,1990.6,1990.4,26.562]
[1742629136211,5.02361,1990.6,1990.4,31.184]
[1742629137140,5.02361,1990.6,1990.4,35.03581936]
[1742629139415,5.02361,1990.6,1990.5,0.36004447]
[1742629141352,7.3334736,1990.6,1990.5,0.36004447]
[1742629141643,8.1583736,1990.6,1990.5,0.36004447]
[1742629141852,5.84851,1990.6,1990.5,0.36004447]
[1742629146434,9.47654696,1990.6,1990.5,0.36004447]
[1742629150582,7.16668336,1990.6,1990.5,0.36004447]
[1742629150881,5.02423,1990.4,1990.2,0.1415]
[1742629151648,5.0239,1990.5,1990.2,2.4513636]
[1742629151848,5.0239,1990.5,1990.3,2.3098636]
[1742629152767,5.02373,1990.6,1990.3,2.3098636]
[1742629153447,5.02373,1990.6,1990.2,7.4758236]
[1742629153650,5.02417,1990.4,1990.2,0.1415]
[1742629154573,5.02417,1990.4,1990.3,0.36213753]
[1742629157074,5.02391,1990.5,1990.3,0.36213753]
[1742629157281,10.04795,1990.5,1990.3,0.36213753]
[1742629157645,5.02391,1990.5,1990.3,0.36213753]
[1742629158641,10.04796,1990.5,1990.3,0.36213753]
[1742629158848,5.02411,1990.4,1990.3,0.36213753]
[1742629166581,5.02359,1990.7,1990.3,2.67200113]
[1742629166788,5.02374,1990.6,1990.3,2.67200113]
[1742629167099,5.02374,1990.6,1990.3,3.45581224]
[1742629167297,5.02374,1990.6,1990.3,8.48017224]
[1742629167484,5.02374,1990.6,1990.3,3.45581224]
[1742629169285,5.82823,1990.8,1990.4,2.3098636]
[1742629169483,2.3098636,1990.9,1990.5,7.0753636]
[1742629169484,10.04585,1990.9,1990.5,7.0753636]
[1742629169765,5.02314,1990.8,1990.5,13.67064137]
[1742629170211,5.02314,1990.8,1990.5,8.64690137]
[1742629173094,5.02314,1990.8,1990.5,5.12709141]
[1742629173402,5.02339,1990.7,1990.5,4.98559141]
[1742629173586,5.02361,1990.6,1990.5,4.98559141]
[1742629173763,5.02361,1990.6,1990.5,0.36159141]
[1742629173966,5.02361,1990.6,1990.5,4.98759141]
[1742629175002,5.02361,1990.6,1990.5,0.36159141]
[1742629175200,7.16932636,1990.6,1990.5,0.36159141]
[1742629180917,5.85091,1990.6,1990.5,0.36159141]
[1742629185492,5.02403,1990.5,1990.2,6.9388636]
[1742629186127,10.0481,1990.5,1990.2,6.9388636]
[1742629186923,5.02403,1990.5,1990.2,6.9388636]
[1742629189028,5.02403,1990.5,1990.3,0.36176702]
[1742629192333,5.85094,1990.6,1990.3,0.36176702]
[1742629192536,5.02364,1990.6,1990.4,0.1415]
[1742629192839,5.02364,1990.6,1990.5,0.36128632]
[1742629193329,5.02344,1990.7,1990.5,0.36128632]
[1742629199438,10.047,1990.7,1990.5,0.36128632]
[1742629200542,5.02344,1990.7,1990.5,0.36128632]
[1742629203735,5.02313,1990.8,1990.5,2.67114992]
[1742629204142,5.7884,1990.9,1990.5,2.67114992]
[1742629204341,5.023,1990.9,1990.7,2.3098636]
[1742629204638,5.023,1990.9,1990.8,0.36015146]
[1742629204843,5.81611,1991.1,1990.8,2.67001506]
[1742629205044,5.81611,1991.1,1990.8,0.36015146]
[1742629205549,5.0226,1991.0,1990.8,0.36015146]
[1742629205746,5.0226,1991.0,1990.8,1.12947897]
[1742629207214,5.81611,1991.1,1990.8,1.12947897]
[1742629208348,10.83865,1991.1,1990.8,1.12947897]
[1742629210653,5.02261,1991.0,1990.8,1.12947897]
[1742629211452,5.02261,1991.0,1990.8,3.43934257]
[1742629211641,5.02239,1991.1,1990.9,0.34393426]
[1742629211841,5.02239,1991.1,1991.0,0.35906099]
[1742629212038,5.02213,1991.2,1990.9,2.3098636]
[1742629212357,5.02213,1991.2,1991.0,0.35906099]
[1742629213533,10.04441,1991.2,1991.0,0.35906099]
[1742629214048,5.02234,1991.1,1991.0,0.35906099]
[1742629214252,5.02234,1991.1,1990.8,3.07919111]
[1742629214448,5.02234,1991.1,1991.0,0.35906099]
[1742629214619,5.02234,1991.1,1990.8,3.07919111]
[1742629214820,5.02234,1991.1,1990.9,0.35930121]
[1742629215220,10.0449,1991.1,1990.9,0.35930121]
[1742629215620,5.02234,1991.1,1990.9,0.35930121]
[1742629217149,5.77384,1991.1,1990.9,0.35930121]
[1742629217551,5.77384,1991.1,1990.9,2.66916481]
[1742629217552,0.7515,1991.1,1990.9,2.66916481]
[1742629217721,5.02211,1991.2,1990.9,3.51531104]
[1742629217926,5.02211,1991.2,1990.9,1.20544744]
[1742629219951,5.0224,1991.1,1990.9,1.20544744]
[1742629220157,5.0224,1991.1,1990.9,0.35930121]
[1742629228113,7.3322636,1991.1,1990.9,0.35930121]
[1742629228271,5.7942,1991.0,1990.9,0.35930121]
[1742629228584,5.7942,1991.0,1990.6,36.35009]
[1742629228785,5.7942,1991.0,1990.9,0.35869129]
[1742629228993,5.7942,1991.0,1990.6,38.6599536]
[1742629229203,5.7942,1991.0,1990.9,0.35869129]
[1742629229562,5.7942,1991.0,1990.6,43.6833736]
[1742629230100,5.7942,1991.0,1990.7,0.35917179]
[1742629230485,5.7942,1991.0,1990.6,43.6833736]
[1742629230706,5.7942,1991.0,1990.8,0.35906219]
[1742629230874,5.7942,1991.0,1990.7,7.69248606]
[1742629231197,5.7942,1991.0,1990.9,0.35882196]
[1742629231394,5.7942,1991.0,1990.8,0.48827268]
[1742629231549,5.7942,1991.0,1990.7,7.3331836]
[1742629231550,5.7942,1991.0,1990.9,0.48748136]
[1742629231753,5.7942,1991.0,1990.7,7.3331836]
[1742629231987,5.7942,1991.0,1990.9,0.48748136]
[1742629232187,5.7942,1991.0,1990.8,0.48772809]
[1742629232351,5.7942,1991.0,1990.9,0.48748136]
[1742629232555,5.7942,1991.0,1990.7,7.3331836]
[1742629232778,5.7942,1991.0,1990.9,0.48748136]
[1742629232975,5.7942,1991.0,1990.8,0.48772809]
[1742629233177,5.7942,1991.0,1990.9,0.48748136]
[1742629233786,5.7942,1991.0,1990.7,5.02332]
[1742629233964,5.7942,1991.0,1990.9,0.48748136]
[1742629234163,5.7942,1991.0,1990.8,0.48772809]
[1742629234364,5.7942,1991.0,1990.9,0.48748136]
[1742629234791,5.7942,1991.0,1990.7,5.02332]
[1742629234992,5.7942,1991.0,1990.9,0.48748136]
[1742629235490,5.7942,1991.0,1990.7,6.73573036]
[1742629235691,5.7942,1991.0,1990.9,0.48748136]
[1742629235880,5.7942,1991.0,1990.8,0.48772809]
[1742629238493,0.7716,1991.0,1990.8,0.48772809]
[1742629238883,5.7942,1991.0,1990.8,0.48772809]
[1742629244066,5.0226,1991.0,1990.8,1.21007094]
[1742629245899,5.0226,1991.0,1990.8,0.48772809]
[1742629249776,5.82205,1990.9,1990.8,0.48772809]
[1742629250103,5.02321,1990.8,1990.6,4.626]
[1742629251484,5.02321,1990.8,1990.6,4.615]
[1742629253305,5.02321,1990.8,1990.5,37.57084228]
[1742629253504,5.02346,1990.7,1990.5,32.54699228]
[1742629253705,5.02346,1990.7,1990.6,0.48872259]
[1742629253706,5.80386,1990.7,1990.6,0.48872259]
[1742629254807,5.80386,1990.7,1990.4,4.616]
[1742629254990,5.80386,1990.7,1990.6,0.48872259]
[1742629255190,5.80386,1990.7,1990.5,0.4889694]
[1742629255376,5.80386,1990.7,1990.6,0.48872259]
[1742629255777,5.80386,1990.7,1990.4,4.616]
[1742629256011,5.80386,1990.7,1990.6,0.48872259]
[1742629256219,10.82743,1990.7,1990.5,0.4889694]
[1742629256376,10.82743,1990.7,1990.6,0.48872259]
[1742629257071,10.82743,1990.7,1990.4,4.616]
[1742629257270,10.82743,1990.7,1990.5,0.4889694]
[1742629258177,5.80386,1990.7,1990.5,0.4889694]
[1742629258379,5.02346,1990.7,1990.5,0.4889694]
[1742629258578,5.02346,1990.7,1990.4,2.4513636]
[1742629258902,5.02346,1990.7,1990.5,0.48916546]
[1742629259516,5.02346,1990.7,1990.5,0.78321837]
[1742629260420,5.02313,1990.8,1990.5,0.78321837]
[1742629260620,5.02338,1990.7,1990.5,0.78321837]
[1742629260788,5.02338,1990.7,1990.5,0.48916546]
[1742629261189,5.02292,1990.9,1990.6,5.0236]
[1742629261600,5.02292,1990.9,1990.7,0.48858473]
[1742629262000,5.02292,1990.9,1990.5,7.3336436]
[1742629262195,5.02292,1990.9,1990.8,0.48833798]
[1742629262396,5.02292,1990.9,1990.5,7.3336436]
[1742629262596,5.02292,1990.9,1990.8,0.48833798]
[1742629262823,5.02292,1990.9,1990.5,7.3336436]
[1742629262988,5.02292,1990.9,1990.8,0.48833798]
[1742629263499,5.02292,1990.9,1990.5,7.3336436]
[1742629263814,5.02311,1990.8,1990.6,0.48883151]
[1742629264320,5.02311,1990.8,1990.7,0.48858473]
[1742629264522,5.02311,1990.8,1990.5,5.02378]
[1742629264698,5.02311,1990.8,1990.6,0.48883151]
[1742629264907,5.02311,1990.8,1990.5,6.27370336]
[1742629265208,5.02311,1990.8,1990.6,0.48883151]
[1742629266120,5.02311,1990.8,1990.5,6.27370336]
[1742629266320,5.02311,1990.8,1990.6,0.48883151]
[1742629266623,5.02311,1990.8,1990.5,6.27370336]
[1742629266917,5.02292,1990.9,1990.6,1.11626727]
[1742629267124,5.02292,1990.9,1990.6,0.48889693]
[1742629267322,5.02292,1990.9,1990.5,8.58356696]
[1742629267525,5.02292,1990.9,1990.7,0.48865015]
[1742629267816,5.02292,1990.9,1990.5,7.3336436]
[1742629268010,5.02292,1990.9,1990.8,0.4884034]
[1742629268214,10.04597,1990.9,1990.5,7.3336436]
[1742629268405,10.04597,1990.9,1990.8,0.4884034]
[1742629268607,10.04597,1990.9,1990.5,7.3336436]
[1742629268804,5.02292,1990.9,1990.8,0.4884034]
[1742629269016,10.04596,1990.9,1990.5,7.3336436]
[1742629269216,5.02292,1990.9,1990.8,0.4884034]
[1742629269415,5.02292,1990.9,1990.5,7.3335836]
[1742629269619,5.02292,1990.9,1990.8,0.4884034]
[1742629269817,5.02292,1990.9,1990.5,7.3335836]
[1742629270018,5.02292,1990.9,1990.8,0.4884034]
[1742629270220,5.02292,1990.9,1990.5,7.3335836]
[1742629270725,5.02292,1990.9,1990.6,0.48889693]
[1742629270933,5.02292,1990.9,1990.5,7.3335836]
[1742629271097,5.02292,1990.9,1990.7,0.48865015]
[1742629271297,5.02292,1990.9,1990.5,7.3335836]
[1742629271618,5.02292,1990.9,1990.8,0.4884034]
[1742629271819,5.02292,1990.9,1990.5,7.3335836]
[1742629272019,5.02292,1990.9,1990.8,0.4884034]
[1742629272520,5.02292,1990.9,1990.5,7.3335836]
[1742629272832,5.02292,1990.9,1990.8,0.4884034]
[1742629273001,5.02292,1990.9,1990.5,12.3572836]
[1742629273207,5.02292,1990.9,1990.8,0.4884034]
[1742629273397,5.02292,1990.9,1990.5,7.3335636]
[1742629273625,5.02292,1990.9,1990.8,0.4884034]
[1742629273832,5.02292,1990.9,1990.5,7.3335636]
[1742629274029,5.02292,1990.9,1990.8,0.4884034]
[1742629274200,5.02292,1990.9,1990.5,7.3335636]
[1742629274526,5.0226,1991.0,1990.6,12.0968136]
[1742629274728,5.0226,1991.0,1990.6,12.58571053]
[1742629274934,5.80284,1991.1,1990.8,2.3098636]
[1742629275129,5.02244,1991.1,1990.8,2.3098636]
[1742629275333,5.02244,1991.1,1990.9,0.48815667]
[1742629276537,0.8031,1991.3,1991.0,7.3323136]
[1742629276743,5.02166,1991.4,1991.0,2.79777356]
[1742629277038,5.02166,1991.4,1991.0,7.42377356]
[1742629277219,5.02193,1991.3,1991.0,12.44631356]
[1742629277406,5.02193,1991.3,1991.1,1.24463136]
[1742629277605,5.02193,1991.3,1991.0,12.44631356]
[1742629277806,5.02193,1991.3,1991.2,0.4868503]
[1742629278019,5.02193,1991.3,1991.1,0.48709695]
[1742629278219,5.02193,1991.3,1991.2,0.4868503]
[1742629278618,5.02193,1991.3,1991.0,9.64854]
[1742629278839,5.02193,1991.3,1991.2,0.4868503]
[1742629279037,5.02193,1991.3,1991.0,11.36079436]
[1742629279038,5.02193,1991.3,1991.1,0.48709695]
[1742629279210,5.02193,1991.3,1991.0,9.64854]
[1742629279211,5.02193,1991.3,1991.2,0.4868503]
[1742629279609,5.02193,1991.3,1991.0,4.626]
[1742629279829,5.02193,1991.3,1991.2,0.4868503]
[1742629280039,5.02193,1991.3,1991.1,0.48709695]
[1742629280236,5.02193,1991.3,1991.2,0.4868503]
[1742629280610,5.02193,1991.3,1991.0,4.626]
[1742629280815,5.02221,1991.2,1991.0,4.626]
[1742629281534,5.02234,1991.1,1990.8,31.58107]
[1742629281733,5.02234,1991.1,1990.9,4.625]
[1742629284107,5.02234,1991.1,1991.0,0.48734363]
[1742629284307,5.02217,1991.2,1991.0,0.48734363]
[1742629287259,5.83056,1991.3,1991.0,0.48734363]
[1742629298455,5.02186,1991.3,1991.0,0.48734363]
[1742629298659,5.02186,1991.3,1991.0,5.50992363]
[1742629301774,5.02167,1991.4,1991.0,6.75541226]
[1742629302075,10.85713,1991.5,1991.1,5.02213]
[1742629302463,10.85713,1991.5,1991.2,0.4868503]
[1742629302768,10.85713,1991.5,1991.1,5.02213]
[1742629302970,10.85713,1991.5,1991.3,0.48660367]
[1742629303169,12.17382936,1991.5,1991.3,0.48660367]
[1742629303395,12.17382936,1991.5,1991.1,5.02213]
[1742629303695,5.02159,1991.4,1991.1,5.02213]
[1742629304355,5.02159,1991.4,1991.1,5.16363]
[1742629306198,5.02159,1991.4,1991.2,0.4868503]
[1742629306998,5.02159,1991.4,1991.1,0.1415]
[1742629307154,5.02159,1991.4,1991.3,0.48660367]
[1742629307663,5.02159,1991.4,1991.1,0.1415]
[1742629307869,5.02159,1991.4,1991.3,0.48660367]
[1742629308065,5.02159,1991.4,1991.2,0.4868503]
[1742629308300,5.02159,1991.4,1991.3,0.48660367]
[1742629308780,5.02159,1991.4,1991.1,0.1415]
[1742629308980,5.02159,1991.4,1991.3,0.48660367]
[1742629309186,5.02159,1991.4,1991.1,0.1415]
[1742629309482,5.02159,1991.4,1991.3,0.48660367]
[1742629309650,5.02159,1991.4,1991.2,0.4868503]
[1742629309846,5.02159,1991.4,1991.3,0.48660367]
[1742629310683,5.02159,1991.4,1991.1,0.1415]
[1742629310849,5.02159,1991.4,1991.3,0.48660367]
[1742629311050,5.02159,1991.4,1991.2,0.4868503]
[1742629311278,5.02159,1991.4,1991.3,0.48660367]
[1742629311856,5.02159,1991.4,1990.9,12.0991836]
[1742629312054,5.02271,1991.0,1990.7,32.54499228]
[1742629312259,5.0226,1991.0,1990.7,32.54499228]
[1742629312493,5.0226,1991.0,1990.8,4.618]
[1742629312787,5.7901,1991.0,1990.8,4.618]
[1742629313488,5.7901,1991.0,1990.9,0.44704003]
[1742629320090,0.7675,1991.0,1990.9,0.44704003]
[1742629320263,5.02241,1991.1,1990.9,0.44704003]
[1742629321197,10.04496,1991.1,1990.9,0.44704003]
[1742629325398,5.02241,1991.1,1990.9,0.44704003]
[1742629326499,0.7675,1991.2,1990.9,0.44704003]
[1742629326699,5.0221,1991.2,1990.9,0.95354403]
[1742629326900,5.0221,1991.2,1990.9,5.97621403]
[1742629327398,5.0221,1991.2,1990.9,0.95354403]
[1742629327576,5.0221,1991.2,1990.9,0.44704003]
[1742629328366,5.02245,1991.1,1990.9,0.44704003]
[1742629336514,7.3323136,1991.1,1990.9,0.44704003]
[1742629336713,5.8514,1991.0,1990.9,0.44704003]
[1742629336884,8.1612636,1991.0,1990.9,0.44704003]
[1742629337088,13.1840836,1991.0,1990.7,4.616]
[1742629337413,10.87422,1991.0,1990.8,0.44774417]
[1742629338210,7.3327136,1990.9,1990.8,0.44774417]
[1742629338415,5.0232,1990.8,1990.6,4.618]
[1742629338613,5.0232,1990.8,1990.5,32.54599228]
[1742629338787,5.02348,1990.7,1990.5,32.54599228]
[1742629338986,10.04701,1990.7,1990.5,32.54599228]
[1742629339311,5.02348,1990.7,1990.5,26.556]
[1742629339480,5.02361,1990.6,1990.5,26.556]
[1742629339686,5.02338,1990.7,1990.5,26.556]
[1742629340620,5.02338,1990.7,1990.6,0.44919627]
[1742629341619,5.02338,1990.7,1990.5,26.556]
[1742629341824,5.02338,1990.7,1990.6,0.44919627]
[1742629342117,5.02338,1990.7,1990.5,26.556]
[1742629342316,5.02338,1990.7,1990.6,0.44919627]
[1742629342719,5.02338,1990.7,1990.5,26.556]
[1742629342915,5.02338,1990.7,1990.6,0.44919627]
[1742629343590,5.02338,1990.7,1990.5,26.556]
[1742629343790,5.02338,1990.7,1990.6,0.44919627]
[1742629343989,5.02338,1990.7,1990.5,26.556]
[1742629344202,5.02338,1990.7,1990.6,0.44919627]
[1742629344407,5.02338,1990.7,1990.5,26.556]
[1742629344606,5.02338,1990.7,1990.6,0.44919627]
[1742629344897,5.02338,1990.7,1990.5,26.556]
[1742629345215,5.02338,1990.7,1990.6,0.44919627]
[1742629345405,5.02338,1990.7,1990.5,26.556]
[1742629345604,5.02338,1990.7,1990.6,0.44919627]
[1742629345819,5.02338,1990.7,1990.5,26.556]
[1742629346005,5.02338,1990.7,1990.6,0.44919627]
[1742629346425,5.02338,1990.7,1990.5,26.556]
[1742629346630,5.02338,1990.7,1990.6,0.44919627]
[1742629346808,5.02338,1990.7,1990.5,30.40679436]
[1742629347009,5.02338,1990.7,1990.6,0.44919627]
[1742629347209,5.02338,1990.7,1990.5,30.40679436]
[1742629347402,5.02338,1990.7,1990.6,0.44919627]
[1742629347801,5.02338,1990.7,1990.5,30.40679436]
[1742629347994,5.02338,1990.7,1990.6,0.44919627]
[1742629348198,5.02338,1990.7,1990.5,30.40679436]
[1742629348525,5.02319,1990.8,1990.6,0.44919627]
[1742629348824,5.02319,1990.8,1990.5,32.71665796]
[1742629349315,5.02319,1990.8,1990.6,0.44919627]
[1742629349711,5.02319,1990.8,1990.5,32.71665796]
[1742629349913,5.02319,1990.8,1990.7,0.44894949]
[1742629350135,5.02319,1990.8,1990.6,0.44919627]
[1742629350431,5.02319,1990.8,1990.7,0.44894949]
[1742629350620,5.02319,1990.8,1990.5,2.3098636]
[1742629350820,5.02319,1990.8,1990.6,0.44919627]
[1742629350994,5.02319,1990.8,1990.5,2.3098636]
[1742629351198,5.02319,1990.8,1990.6,0.44919627]
[1742629351399,5.02319,1990.8,1990.5,2.3098636]
[1742629351625,5.02319,1990.8,1990.6,0.44919627]
[1742629351932,10.04647,1990.8,1990.6,0.44919627]
[1742629352231,10.04647,1990.8,1990.7,0.44894949]
[1742629352531,10.04647,1990.8,1990.4,12.0932836]
[1742629352730,10.04647,1990.8,1990.7,0.44894949]
[1742629353030,10.04647,1990.8,1990.4,13.80504696]
[1742629353031,10.047,1990.7,1990.4,4.618]
[1742629353832,5.02364,1990.6,1990.4,4.618]
[1742629355035,5.02364,1990.6,1990.5,0.4493559]
[1742629357235,5.02343,1990.7,1990.5,0.4493559]
[1742629361335,5.02343,1990.7,1990.5,3.49694145]
[1742629361531,10.04633,1990.8,1990.5,3.49694145]
[1742629361738,10.04633,1990.8,1990.5,0.4493559]
[1742629361904,10.79903,1990.8,1990.5,0.4493559]
[1742629363139,5.02338,1990.7,1990.5,0.4493559]
[1742629367240,5.02338,1990.7,1990.5,2.7592195]
[1742629371140,5.77582,1990.8,1990.5,2.7592195]
[1742629371308,10.7991,1990.8,1990.5,2.7592195]
[1742629371516,5.77582,1990.8,1990.5,2.7592195]
[1742629372449,5.02336,1990.7,1990.5,2.7592195]
[1742629376249,5.02336,1990.7,1990.5,0.4493559]
[1742629380957,10.04693,1990.7,1990.5,0.4493559]
[1742629381120,5.02336,1990.7,1990.5,0.4493559]
[1742629383658,10.04696,1990.7,1990.5,0.4493559]
[1742629383840,5.02336,1990.7,1990.5,0.4493559]
[1742629390140,7.3324736,1991.0,1990.6,2.3098636]
[1742629390141,0.7609,1991.0,1990.6,2.3098636]
[1742629390346,5.02271,1991.0,1990.7,7.3332036]
[1742629390546,5.02241,1991.1,1990.7,7.78182625]
[1742629390900,10.04495,1991.1,1990.7,7.78182625]
[1742629391238,5.02265,1991.0,1990.7,7.78182625]
[1742629392871,5.02249,1991.1,1990.7,7.78180625]
[1742629393034,5.02249,1991.1,1990.8,2.3098636]
[1742629393365,10.04506,1991.1,1990.9,0.44812917]
[1742629395372,5.0226,1991.0,1990.9,0.44812917]
[1742629396479,5.02249,1991.1,1990.9,0.44812917]
[1742629396681,10.04501,1991.1,1990.9,0.44812917]
[1742629397688,5.0226,1991.0,1990.9,0.44812917]
[1742629398347,5.02249,1991.1,1990.9,0.44812917]
[1742629400886,10.04501,1991.1,1990.9,0.44812917]
[1742629401381,5.02249,1991.1,1990.9,0.44812917]
[1742629402281,5.78307,1991.2,1990.9,2.75799277]
[1742629402476,5.02217,1991.2,1990.9,2.75799277]
[1742629403357,10.04444,1991.2,1990.9,2.75799277]
[1742629405282,5.02217,1991.2,1990.9,2.75799277]
[1742629405673,10.04447,1991.2,1990.9,2.75799277]
[1742629406188,5.02217,1991.2,1990.9,2.75799277]
[1742629407657,10.04446,1991.2,1990.9,2.75799277]
[1742629408588,5.02217,1991.2,1990.9,2.75799277]
[1742629410899,10.04444,1991.2,1990.9,2.75799277]
[1742629411201,5.02217,1991.2,1990.9,2.75799277]
[1742629411866,5.02217,1991.2,1990.9,4.01173705]
[1742629412067,5.02187,1991.3,1991.0,2.3098636]
[1742629412297,5.02187,1991.3,1991.1,0.44702595]
[1742629414702,10.04391,1991.3,1991.1,0.44702595]
[1742629415201,10.04391,1991.3,1990.9,8.58635788]
[1742629415384,10.04391,1991.3,1991.2,0.4467793]
[1742629415578,5.02187,1991.3,1991.0,2.3098636]
[1742629415779,5.02187,1991.3,1991.2,0.4467793]
[1742629415984,5.02187,1991.3,1991.1,0.44702595]
[1742629416190,5.02187,1991.3,1991.2,0.4467793]
[1742629416600,5.02187,1991.3,1991.0,2.4513636]
[1742629416797,5.02187,1991.3,1991.2,0.4467793]
[1742629416980,5.02187,1991.3,1991.1,0.44702595]
[1742629417184,5.02187,1991.3,1991.2,0.4467793]
[1742629417489,5.02187,1991.3,1991.0,2.4513636]
[1742629417690,5.02187,1991.3,1991.1,0.44702595]
[1742629419372,10.04389,1991.3,1991.1,0.44702595]
[1742629419804,5.02187,1991.3,1991.1,0.44702595]
[1742629421504,5.02209,1991.2,1991.1,0.44702595]
[1742629426407,5.02209,1991.2,1990.9,7.3325336]
[1742629426607,5.02209,1991.2,1991.1,0.44687354]
[1742629426787,5.02209,1991.2,1991.0,0.44712022]
[1742629426987,5.02209,1991.2,1991.1,0.44687354]
[1742629427381,5.02209,1991.2,1990.9,7.3325336]
[1742629427585,5.02209,1991.2,1991.1,0.44687354]
[1742629427778,5.02209,1991.2,1991.0,0.44712022]
[1742629427978,5.02209,1991.2,1991.1,0.44687354]
[1742629428688,5.02209,1991.2,1990.9,7.3325336]
[1742629429022,5.02209,1991.2,1991.0,0.44712022]
[1742629429619,5.02187,1991.3,1991.0,0.44712022]
[1742629429913,10.04389,1991.3,1991.0,0.44712022]
[1742629430583,5.02215,1991.2,1991.0,0.44712022]
[1742629431997,5.02187,1991.3,1991.0,0.44712022]
[1742629432182,10.04389,1991.3,1991.0,0.44712022]
[1742629434021,0.7663,1991.4,1991.0,0.44712022]
[1742629434022,5.78793,1991.4,1991.1,0.1415]
[1742629434314,5.78793,1991.4,1991.2,0.44686638]
[1742629434516,5.78793,1991.4,1991.1,2.4513636]
[1742629434818,5.78793,1991.4,1991.2,0.44686638]
[1742629435197,10.8097,1991.4,1991.1,0.1415]
[1742629435401,10.8097,1991.4,1991.3,0.44661975]
[1742629435588,10.8097,1991.4,1991.2,0.44686638]
[1742629435785,5.78793,1991.4,1991.3,0.44661975]
[1742629436216,10.8097,1991.4,1991.1,0.1415]
[1742629436393,10.8097,1991.4,1991.3,0.44661975]
[1742629436594,10.8097,1991.4,1991.2,0.44686638]
[1742629436806,5.78793,1991.4,1991.3,0.44661975]
[1742629437532,5.78793,1991.4,1991.1,0.1415]
[1742629437688,5.78793,1991.4,1991.2,0.44686638]
[1742629438018,5.78793,1991.4,1991.1,0.1415]
[1742629438222,5.78793,1991.4,1991.3,0.44661975]
[1742629438720,5.78793,1991.4,1991.0,7.4737936]
[1742629438916,5.78793,1991.4,1991.1,0.44711304]
[1742629439218,10.80972,1991.4,1991.1,0.44711304]
[1742629439627,5.02184,1991.3,1991.1,0.44711304]
[1742629445529,5.02184,1991.3,1990.9,9.04383596]
[1742629445691,5.02184,1991.3,1990.8,36.33458]
[1742629445692,2.3098636,1991.2,1991.0,0.44735972]